[Event "Titled Tuesday Blitz June 20 Early 2023"]
[White "Goltseva, Ekaterina"]
[Black "agvania123"]
[WhiteFideId "24173770"]
[WhiteElo "2114"]
[BlackElo "2254"]
[Result "1-0"]
[Round "3"]
[TimeControl "180+2"]
[Date "2023.06.20"]
[WhiteClock "0:01:10"]
[BlackClock "0:00:00"]
[Board "200"]

1. e4 {[%clk 0:03:00]}  d5 {[%clk 0:03:00]} 2. exd5 {[%clk 0:03:00]}  Qxd5 {[%clk 0:03:00]} 3. Nc3 {[%clk 0:03:00]}  Qd8 {[%clk 0:03:01]} 4. d4 {[%clk 0:03:01]}  Nf6 {[%clk 0:03:01]} 5. Nf3 {[%clk 0:03:01]}  Bg4 {[%clk 0:03:00]} 6. Bf4 {[%clk 0:03:01]}  e6 {[%clk 0:03:00]} 7. Be2 {[%clk 0:03:02]}  c6 {[%clk 0:03:00]} 8. Qd2 {[%clk 0:03:02]}  Bd6 {[%clk 0:03:00]} 9. Bg5 {[%clk 0:03:01]}  Nbd7 {[%clk 0:02:57]} 10. O-O-O {[%clk 0:03:01]}  O-O {[%clk 0:02:56]} 11. h3 {[%clk 0:03:00]}  Bxf3 {[%clk 0:02:54]} 12. Bxf3 {[%clk 0:02:56]}  Qa5 {[%clk 0:02:54]} 13. Kb1 {[%clk 0:02:55]}  Nd5 {[%clk 0:02:41]} 14. Ne4 {[%clk 0:02:49]}  Qxd2 {[%clk 0:02:40]} 15. Bxd2 {[%clk 0:02:50]}  Be7 {[%clk 0:02:39]} 16. c4 {[%clk 0:02:49]}  N5f6 {[%clk 0:02:39]} 17. Nc3 {[%clk 0:02:46]}  Rfd8 {[%clk 0:02:36]} 18. Rhe1 {[%clk 0:02:45]}  Nb6 {[%clk 0:02:35]} 19. b3 {[%clk 0:02:43]}  Rxd4 {[%clk 0:02:34]} 20. Be3 {[%clk 0:02:41]}  Rxd1+ {[%clk 0:02:33]} 21. Rxd1 {[%clk 0:02:42]}  Rd8 {[%clk 0:02:32]} 22. Kc2 {[%clk 0:02:37]}  Kf8 {[%clk 0:02:12]} 23. a4 {[%clk 0:02:30]}  Ke8 {[%clk 0:02:09]} 24. a5 {[%clk 0:02:29]}  Nc8 {[%clk 0:02:08]} 25. Na4 {[%clk 0:02:28]}  a6 {[%clk 0:02:06]} 26. Nc5 {[%clk 0:02:23]}  Rxd1 {[%clk 0:02:03]} 27. Kxd1 {[%clk 0:02:22]}  Bxc5 {[%clk 0:01:51]} 28. Bxc5 {[%clk 0:02:23]}  Nd7 {[%clk 0:01:51]} 29. Bd4 {[%clk 0:02:22]}  f6 {[%clk 0:01:50]} 30. Kc2 {[%clk 0:02:20]}  e5 {[%clk 0:01:50]} 31. Be3 {[%clk 0:02:20]}  Nd6 {[%clk 0:01:50]} 32. Kc3 {[%clk 0:02:20]}  Ke7 {[%clk 0:01:48]} 33. b4 {[%clk 0:02:20]}  h6 {[%clk 0:01:26]} 34. Kb3 {[%clk 0:02:16]}  f5 {[%clk 0:01:25]} 35. g4 {[%clk 0:02:12]}  f4 {[%clk 0:01:24]} 36. Bd2 {[%clk 0:02:08]}  e4 {[%clk 0:01:23]} 37. Bg2 {[%clk 0:02:06]}  g5 {[%clk 0:01:23]} 38. c5 {[%clk 0:02:05]}  Nb5 {[%clk 0:01:22]} 39. Bxe4 {[%clk 0:02:05]}  Nf6 {[%clk 0:01:18]} 40. Bd3 {[%clk 0:02:00]}  Nd5 {[%clk 0:01:13]} 41. Kc4 {[%clk 0:01:55]}  Ke6 {[%clk 0:00:59]} 42. Bf5+ {[%clk 0:01:51]}  Ke5 {[%clk 0:00:56]} 43. Bc8 {[%clk 0:01:44]}  Ke4 {[%clk 0:00:37]} 44. Bxb7 {[%clk 0:01:43]}  Nd4 {[%clk 0:00:36]} 45. Bxa6 {[%clk 0:01:27]}  Nf3 {[%clk 0:00:33]} 46. Bc3 {[%clk 0:01:20]}  Nxc3 {[%clk 0:00:13]} 47. Kxc3 {[%clk 0:01:21]}  Nd4 {[%clk 0:00:14]} 48. Bc4 {[%clk 0:01:11]}  Nf3 {[%clk 0:00:00]} 49. a6 {[%clk 0:01:10]} 1-0


[Site "https://www.chess.com"]

[Event "Titled Tuesday Blitz June 20 Early 2023"]
[White "Cheng, Xiao"]
[Black "Thiel, Thomas"]
[WhiteFideId "2022915"]
[BlackFideId "4615964"]
[WhiteElo "2426"]
[BlackElo "2228"]
[Result "1-0"]
[Round "3"]
[TimeControl "180+2"]
[Date "2023.06.20"]
[WhiteClock "0:01:57"]
[BlackClock "0:01:31"]
[Board "204"]

1. d4 {[%clk 0:02:44]}  d5 {[%clk 0:02:58]} 2. Nf3 {[%clk 0:02:43]}  Nf6 {[%clk 0:02:56]} 3. c4 {[%clk 0:02:43]}  dxc4 {[%clk 0:02:55]} 4. Nc3 {[%clk 0:02:42]}  Bg4 {[%clk 0:02:52]} 5. Ne5 {[%clk 0:02:41]}  Be6 {[%clk 0:02:49]} 6. e3 {[%clk 0:02:39]}  Nbd7 {[%clk 0:02:48]} 7. Nxc4 {[%clk 0:02:38]}  Nb6 {[%clk 0:02:47]} 8. Ne5 {[%clk 0:02:38]}  Nfd7 {[%clk 0:02:47]} 9. f4 {[%clk 0:02:37]}  Nxe5 {[%clk 0:02:45]} 10. fxe5 {[%clk 0:02:37]}  Bf5 {[%clk 0:02:41]} 11. Bd3 {[%clk 0:02:33]}  Bxd3 {[%clk 0:02:39]} 12. Qxd3 {[%clk 0:02:34]}  e6 {[%clk 0:02:37]} 13. O-O {[%clk 0:02:34]}  c5 {[%clk 0:02:35]} 14. Kh1 {[%clk 0:02:34]}  cxd4 {[%clk 0:02:33]} 15. exd4 {[%clk 0:02:35]}  Qd7 {[%clk 0:02:25]} 16. Ne4 {[%clk 0:02:32]}  Rd8 {[%clk 0:02:22]} 17. Be3 {[%clk 0:02:31]}  Nd5 {[%clk 0:02:21]} 18. Bg1 {[%clk 0:02:29]}  Be7 {[%clk 0:02:19]} 19. Rf3 {[%clk 0:02:22]}  O-O {[%clk 0:02:13]} 20. a3 {[%clk 0:02:22]}  Rc8 {[%clk 0:02:03]} 21. Rh3 {[%clk 0:02:21]}  g6 {[%clk 0:02:01]} 22. Qd2 {[%clk 0:02:19]}  f5 {[%clk 0:01:52]} 23. exf6 {[%clk 0:02:18]}  Nxf6 {[%clk 0:01:51]} 24. Qh6 {[%clk 0:02:16]}  Bd8 {[%clk 0:01:45]} 25. Nxf6+ {[%clk 0:02:06]}  Bxf6 {[%clk 0:01:42]} 26. Qd2 {[%clk 0:02:01]}  Qxd4 {[%clk 0:01:31]} 27. Bxd4 {[%clk 0:01:57]} 1-0


[Site "https://www.chess.com"]

[Event "Titled Tuesday Blitz June 20 Early 2023"]
[White "Kiseleva, Arina"]
[Black "Gomes, Luiz Alexandre de Souza"]
[WhiteFideId "4164989"]
[BlackFideId "2102790"]
[WhiteElo "1701"]
[BlackElo "2411"]
[Result "0-1"]
[Round "3"]
[TimeControl "180+2"]
[Date "2023.06.20"]
[WhiteClock "0:00:00"]
[BlackClock "0:00:34"]
[Board "207"]

1. d4 {[%clk 0:03:00]}  Nf6 {[%clk 0:02:54]} 2. Nf3 {[%clk 0:03:00]}  g6 {[%clk 0:02:54]} 3. c4 {[%clk 0:02:55]}  c5 {[%clk 0:02:54]} 4. d5 {[%clk 0:02:54]}  d6 {[%clk 0:02:54]} 5. Nc3 {[%clk 0:02:53]}  Bg7 {[%clk 0:02:53]} 6. e4 {[%clk 0:02:39]}  b5 {[%clk 0:02:53]} 7. cxb5 {[%clk 0:02:38]}  a6 {[%clk 0:02:54]} 8. b6 {[%clk 0:02:37]}  O-O {[%clk 0:02:53]} 9. Be2 {[%clk 0:02:36]}  Qxb6 {[%clk 0:02:53]} 10. O-O {[%clk 0:02:35]}  Nbd7 {[%clk 0:02:53]} 11. Nd2 {[%clk 0:02:35]}  a5 {[%clk 0:02:49]} 12. Nc4 {[%clk 0:02:34]}  Qd8 {[%clk 0:02:49]} 13. f4 {[%clk 0:02:23]}  Ne8 {[%clk 0:02:49]} 14. Be3 {[%clk 0:02:22]}  Ba6 {[%clk 0:02:44]} 15. Rc1 {[%clk 0:02:21]}  Bxc4 {[%clk 0:02:24]} 16. Bxc4 {[%clk 0:02:20]}  Nb6 {[%clk 0:02:24]} 17. b3 {[%clk 0:02:09]}  Nc7 {[%clk 0:02:24]} 18. e5 {[%clk 0:02:03]}  a4 {[%clk 0:02:10]} 19. Nxa4 {[%clk 0:01:49]}  Nxa4 {[%clk 0:02:08]} 20. bxa4 {[%clk 0:01:49]}  Na6 {[%clk 0:02:03]} 21. Qe2 {[%clk 0:01:38]}  Qc8 {[%clk 0:01:50]} 22. Bf2 {[%clk 0:01:17]}  Nc7 {[%clk 0:01:37]} 23. Rfe1 {[%clk 0:01:14]}  Rxa4 {[%clk 0:01:35]} 24. Bh4 {[%clk 0:00:58]}  Qd7 {[%clk 0:01:22]} 25. e6 {[%clk 0:00:32]}  fxe6 {[%clk 0:01:21]} 26. dxe6 {[%clk 0:00:31]}  Qe8 {[%clk 0:01:22]} 27. Rf1 {[%clk 0:00:18]}  Bd4+ {[%clk 0:01:13]} 28. Kh1 {[%clk 0:00:18]}  Bf6 {[%clk 0:01:13]} 29. Bxf6 {[%clk 0:00:16]}  Rxf6 {[%clk 0:01:14]} 30. g3 {[%clk 0:00:15]}  Qa8+ {[%clk 0:01:10]} 31. Kg1 {[%clk 0:00:13]}  Rb4 {[%clk 0:01:00]} 32. g4 {[%clk 0:00:12]}  Qb7 {[%clk 0:00:58]} 33. f5 {[%clk 0:00:12]}  Rb2 {[%clk 0:00:54]} 34. Rc2 {[%clk 0:00:11]}  Rxc2 {[%clk 0:00:54]} 35. Qxc2 {[%clk 0:00:11]}  d5 {[%clk 0:00:53]} 36. Bd3 {[%clk 0:00:10]}  c4 {[%clk 0:00:53]} 37. fxg6 {[%clk 0:00:08]}  cxd3 {[%clk 0:00:49]} 38. gxh7+ {[%clk 0:00:08]}  Kxh7 {[%clk 0:00:47]} 39. Qxd3+ {[%clk 0:00:07]}  Kg7 {[%clk 0:00:47]} 40. Rxf6 {[%clk 0:00:07]}  exf6 {[%clk 0:00:47]} 41. e7 {[%clk 0:00:06]}  Ne8 {[%clk 0:00:45]} 42. Qe3 {[%clk 0:00:05]}  Kf7 {[%clk 0:00:41]} 43. Qd4 {[%clk 0:00:04]}  Kxe7 {[%clk 0:00:39]} 44. g5 {[%clk 0:00:04]}  Qb1+ {[%clk 0:00:37]} 45. Kg2 {[%clk 0:00:04]}  Qxa2+ {[%clk 0:00:38]} 46. Kh3 {[%clk 0:00:03]}  Qb3+ {[%clk 0:00:34]} 47. Kg2 {[%clk 0:00:04]}  Qc2+ {[%clk 0:00:34]} 48. Kh3 {[%clk 0:00:04]}  Qf5+ {[%clk 0:00:34]} 49. Kg2 {[%clk 0:00:01]}  Qxg5+ {[%clk 0:00:34]} 50. Kf3 {[%clk 0:00:02]}  Qf5+ {[%clk 0:00:34]} 51. Kg2 {[%clk 0:00:00]}  Qe4+ {[%clk 0:00:34]} 0-1


[Site "https://www.chess.com"]

[Event "Titled Tuesday Blitz June 20 Early 2023"]
[White "FromTexas54"]
[Black "Tsyhanchuk, Stanislav"]
[BlackFideId "13505130"]
[WhiteElo "2407"]
[BlackElo "2173"]
[Result "1-0"]
[Round "3"]
[TimeControl "180+2"]
[Date "2023.06.20"]
[WhiteClock "0:00:04"]
[BlackClock "0:00:08"]
[Board "208"]

1. Nf3 {[%clk 0:03:00]}  Nf6 {[%clk 0:02:52]} 2. d4 {[%clk 0:02:59]}  e6 {[%clk 0:02:25]} 3. e3 {[%clk 0:02:57]}  d5 {[%clk 0:02:23]} 4. Be2 {[%clk 0:02:57]}  Be7 {[%clk 0:02:19]} 5. O-O {[%clk 0:02:57]}  O-O {[%clk 0:02:19]} 6. b3 {[%clk 0:02:56]}  b6 {[%clk 0:02:19]} 7. Nbd2 {[%clk 0:02:56]}  Bb7 {[%clk 0:01:28]} 8. Bb2 {[%clk 0:02:28]}  Nbd7 {[%clk 0:01:29]} 9. c4 {[%clk 0:02:28]}  Rc8 {[%clk 0:01:28]} 10. Ne5 {[%clk 0:02:21]}  Nxe5 {[%clk 0:01:27]} 11. dxe5 {[%clk 0:02:22]}  Ne4 {[%clk 0:01:25]} 12. Nxe4 {[%clk 0:02:22]}  dxe4 {[%clk 0:01:25]} 13. Qc2 {[%clk 0:02:22]}  Bc5 {[%clk 0:01:19]} 14. Rad1 {[%clk 0:02:14]}  Qg5 {[%clk 0:01:19]} 15. Kh1 {[%clk 0:02:02]}  a5 {[%clk 0:01:19]} 16. a3 {[%clk 0:02:01]}  Rcd8 {[%clk 0:01:17]} 17. h3 {[%clk 0:01:46]}  Qh4 {[%clk 0:01:14]} 18. Qc3 {[%clk 0:01:37]}  Rxd1 {[%clk 0:01:12]} 19. Bxd1 {[%clk 0:01:38]}  Rd8 {[%clk 0:01:10]} 20. Bc2 {[%clk 0:01:34]}  h6 {[%clk 0:00:51]} 21. b4 {[%clk 0:01:34]}  axb4 {[%clk 0:00:51]} 22. axb4 {[%clk 0:01:34]}  Bf8 {[%clk 0:00:51]} 23. Bb3 {[%clk 0:01:28]}  Ba6 {[%clk 0:00:49]} 24. Kg1 {[%clk 0:01:12]}  Qe7 {[%clk 0:00:43]} 25. b5 {[%clk 0:01:07]}  Bb7 {[%clk 0:00:41]} 26. Bc2 {[%clk 0:01:07]}  Qb4 {[%clk 0:00:37]} 27. Ra1 {[%clk 0:01:05]}  Ra8 {[%clk 0:00:31]} 28. Rxa8 {[%clk 0:00:54]}  Bxa8 {[%clk 0:00:32]} 29. g4 {[%clk 0:00:48]}  Qc5 {[%clk 0:00:29]} 30. Qb3 {[%clk 0:00:43]}  Be7 {[%clk 0:00:25]} 31. Bd4 {[%clk 0:00:42]}  Qb4 {[%clk 0:00:23]} 32. Qa2 {[%clk 0:00:36]}  Qa3 {[%clk 0:00:21]} 33. Qxa3 {[%clk 0:00:34]}  Bxa3 {[%clk 0:00:22]} 34. Kg2 {[%clk 0:00:32]}  Kf8 {[%clk 0:00:21]} 35. h4 {[%clk 0:00:32]}  g5 {[%clk 0:00:21]} 36. Kg3 {[%clk 0:00:29]}  Ke7 {[%clk 0:00:20]} 37. h5 {[%clk 0:00:23]}  Bb4 {[%clk 0:00:17]} 38. Kg2 {[%clk 0:00:21]}  Ba3 {[%clk 0:00:16]} 39. Kf1 {[%clk 0:00:21]}  Bb4 {[%clk 0:00:17]} 40. Bb1 {[%clk 0:00:19]}  Ba3 {[%clk 0:00:17]} 41. Ke2 {[%clk 0:00:19]}  Bb4 {[%clk 0:00:18]} 42. Kd1 {[%clk 0:00:19]}  Bb7 {[%clk 0:00:18]} 43. Ke2 {[%clk 0:00:18]}  Ba3 {[%clk 0:00:18]} 44. Kf1 {[%clk 0:00:18]}  Bb4 {[%clk 0:00:18]} 45. Bc2 {[%clk 0:00:19]}  Ba8 {[%clk 0:00:18]} 46. Bd1 {[%clk 0:00:19]}  Bb7 {[%clk 0:00:19]} 47. Kg2 {[%clk 0:00:19]}  c6 {[%clk 0:00:19]} 48. Bxb6 {[%clk 0:00:15]}  c5 {[%clk 0:00:18]} 49. Bc7 {[%clk 0:00:14]}  Kd7 {[%clk 0:00:18]} 50. Bd6 {[%clk 0:00:14]}  f6 {[%clk 0:00:18]} 51. Bf8 {[%clk 0:00:13]}  fxe5 {[%clk 0:00:18]} 52. Bxh6 {[%clk 0:00:13]}  Bc3 {[%clk 0:00:18]} 53. Bxg5 {[%clk 0:00:10]}  Bd5 {[%clk 0:00:18]} 54. Be2 {[%clk 0:00:08]}  Ke8 {[%clk 0:00:17]} 55. h6 {[%clk 0:00:08]}  Kf7 {[%clk 0:00:17]} 56. Bd8 {[%clk 0:00:07]}  Bb7 {[%clk 0:00:14]} 57. g5 {[%clk 0:00:07]}  Kg6 {[%clk 0:00:14]} 58. Bh5+ {[%clk 0:00:07]}  Kh7 {[%clk 0:00:12]} 59. Bf7 {[%clk 0:00:05]}  Bb4 {[%clk 0:00:08]} 60. Bxe6 {[%clk 0:00:05]}  Bc3 {[%clk 0:00:08]} 61. Bf5+ {[%clk 0:00:05]}  Kg8 {[%clk 0:00:08]} 62. h7+ {[%clk 0:00:04]}  Kh8 {[%clk 0:00:08]} 63. Bf6# {[%clk 0:00:04]} 1-0


[Site "https://www.chess.com"]

[Event "Titled Tuesday Blitz June 20 Early 2023"]
[White "Fudalej, Michal"]
[Black "Gatterer, Florian"]
[WhiteFideId "1118781"]
[BlackFideId "811688"]
[WhiteElo "2088"]
[BlackElo "2221"]
[Result "0-1"]
[Round "3"]
[TimeControl "180+2"]
[Date "2023.06.20"]
[WhiteClock "0:00:00"]
[BlackClock "0:00:31"]
[Board "209"]

1. Nf3 {[%clk 0:01:56]}  d5 {[%clk 0:03:00]} 2. g3 {[%clk 0:01:56]}  c5 {[%clk 0:02:59]} 3. Bg2 {[%clk 0:01:56]}  Nc6 {[%clk 0:03:00]} 4. c4 {[%clk 0:01:56]}  Nf6 {[%clk 0:03:01]} 5. b3 {[%clk 0:01:56]}  e6 {[%clk 0:02:58]} 6. Bb2 {[%clk 0:01:54]}  Be7 {[%clk 0:02:58]} 7. O-O {[%clk 0:01:54]}  O-O {[%clk 0:02:58]} 8. e3 {[%clk 0:01:54]}  b6 {[%clk 0:02:59]} 9. Nc3 {[%clk 0:01:53]}  Bb7 {[%clk 0:02:57]} 10. cxd5 {[%clk 0:01:52]}  Nxd5 {[%clk 0:02:53]} 11. Nxd5 {[%clk 0:01:52]}  exd5 {[%clk 0:02:54]} 12. d4 {[%clk 0:01:52]}  c4 {[%clk 0:02:53]} 13. bxc4 {[%clk 0:01:45]}  dxc4 {[%clk 0:02:53]} 14. d5 {[%clk 0:01:35]}  Nb4 {[%clk 0:02:27]} 15. Ne5 {[%clk 0:01:27]}  b5 {[%clk 0:02:14]} 16. e4 {[%clk 0:01:17]}  f6 {[%clk 0:02:10]} 17. a3 {[%clk 0:01:15]}  Na6 {[%clk 0:02:03]} 18. Ng4 {[%clk 0:01:06]}  Nc5 {[%clk 0:01:58]} 19. Ne3 {[%clk 0:01:05]}  Nd3 {[%clk 0:01:55]} 20. Bc3 {[%clk 0:00:59]}  a5 {[%clk 0:01:55]} 21. Rb1 {[%clk 0:00:49]}  b4 {[%clk 0:01:54]} 22. Nxc4 {[%clk 0:00:41]}  Ba6 {[%clk 0:01:34]} 23. Qxd3 {[%clk 0:00:40]}  bxc3 {[%clk 0:01:33]} 24. Rfc1 {[%clk 0:00:30]}  Bxa3 {[%clk 0:01:24]} 25. Rxc3 {[%clk 0:00:28]}  Bb4 {[%clk 0:01:24]} 26. Rc2 {[%clk 0:00:28]}  Rc8 {[%clk 0:01:24]} 27. Qb3 {[%clk 0:00:25]}  Kh8 {[%clk 0:01:17]} 28. Ne3 {[%clk 0:00:21]}  Qe7 {[%clk 0:01:01]} 29. Rbc1 {[%clk 0:00:20]}  g6 {[%clk 0:00:58]} 30. Rxc8 {[%clk 0:00:19]}  Rxc8 {[%clk 0:00:59]} 31. Rxc8+ {[%clk 0:00:18]}  Bxc8 {[%clk 0:01:00]} 32. Qa4 {[%clk 0:00:19]}  Kg7 {[%clk 0:00:54]} 33. Nc4 {[%clk 0:00:19]}  Bd7 {[%clk 0:00:52]} 34. Qa2 {[%clk 0:00:18]}  Qc5 {[%clk 0:00:51]} 35. h4 {[%clk 0:00:16]}  h5 {[%clk 0:00:49]} 36. Ne3 {[%clk 0:00:14]}  Bb5 {[%clk 0:00:46]} 37. Kh2 {[%clk 0:00:12]}  a4 {[%clk 0:00:45]} 38. g4 {[%clk 0:00:09]}  hxg4 {[%clk 0:00:37]} 39. Nxg4 {[%clk 0:00:10]}  Qd6+ {[%clk 0:00:33]} 40. Kh1 {[%clk 0:00:00]}  Qf4 {[%clk 0:00:31]} 0-1


[Site "https://www.chess.com"]

[Event "Titled Tuesday Blitz June 20 Early 2023"]
[White "Politov, Pavel Y."]
[Black "Ai, Evan"]
[WhiteFideId "24110515"]
[BlackFideId "2094770"]
[WhiteElo "2066"]
[BlackElo "1963"]
[Result "0-1"]
[Round "3"]
[TimeControl "180+2"]
[Date "2023.06.20"]
[WhiteClock "0:00:19"]
[BlackClock "0:00:45"]
[Board "210"]

1. e4 {[%clk 0:03:00]}  e5 {[%clk 0:02:57]} 2. Nf3 {[%clk 0:02:59]}  Nc6 {[%clk 0:02:57]} 3. Bc4 {[%clk 0:02:59]}  Nf6 {[%clk 0:02:54]} 4. d3 {[%clk 0:02:59]}  Bc5 {[%clk 0:02:54]} 5. O-O {[%clk 0:02:56]}  d6 {[%clk 0:02:54]} 6. c3 {[%clk 0:02:56]}  Bg4 {[%clk 0:02:46]} 7. Nbd2 {[%clk 0:02:55]}  a6 {[%clk 0:02:32]} 8. Bb3 {[%clk 0:02:50]}  Qe7 {[%clk 0:02:31]} 9. h3 {[%clk 0:02:49]}  Bd7 {[%clk 0:02:25]} 10. Re1 {[%clk 0:02:48]}  h6 {[%clk 0:02:24]} 11. Nf1 {[%clk 0:02:42]}  g5 {[%clk 0:02:20]} 12. Be3 {[%clk 0:02:29]}  Bxe3 {[%clk 0:02:04]} 13. Nxe3 {[%clk 0:02:28]}  Rg8 {[%clk 0:01:56]} 14. Nd2 {[%clk 0:02:16]}  h5 {[%clk 0:01:39]} 15. Nd5 {[%clk 0:01:53]}  Nxd5 {[%clk 0:01:31]} 16. exd5 {[%clk 0:01:51]}  Na7 {[%clk 0:01:25]} 17. Qxh5 {[%clk 0:01:45]}  g4 {[%clk 0:01:18]} 18. hxg4 {[%clk 0:01:25]}  Bxg4 {[%clk 0:01:19]} 19. Qh6 {[%clk 0:01:17]}  O-O-O {[%clk 0:01:18]} 20. Qe3 {[%clk 0:01:16]}  Kb8 {[%clk 0:01:10]} 21. f3 {[%clk 0:01:08]}  Bh3 {[%clk 0:01:08]} 22. Re2 {[%clk 0:00:37]}  Qh4 {[%clk 0:00:56]} 23. Kf1 {[%clk 0:00:32]}  Bxg2+ {[%clk 0:00:46]} 24. Rxg2 {[%clk 0:00:30]}  Rxg2 {[%clk 0:00:47]} 25. Kxg2 {[%clk 0:00:29]}  Rg8+ {[%clk 0:00:48]} 26. Kf1 {[%clk 0:00:27]}  Qh1+ {[%clk 0:00:48]} 27. Ke2 {[%clk 0:00:24]}  Rg2+ {[%clk 0:00:48]} 28. Qf2 {[%clk 0:00:23]}  Rxf2+ {[%clk 0:00:49]} 29. Kxf2 {[%clk 0:00:23]}  Qxa1 {[%clk 0:00:50]} 30. Ne4 {[%clk 0:00:22]}  Qxb2+ {[%clk 0:00:50]} 31. Ke3 {[%clk 0:00:21]}  f5 {[%clk 0:00:50]} 32. Nf6 {[%clk 0:00:20]}  Qxc3 {[%clk 0:00:47]} 33. f4 {[%clk 0:00:19]}  Qc1+ {[%clk 0:00:45]} 34. Kf3 {[%clk 0:00:19]}  Qxf4+ {[%clk 0:00:45]} 35. Ke2 {[%clk 0:00:19]}  Qh2+ {[%clk 0:00:45]} 0-1


[Site "https://www.chess.com"]

[Event "Titled Tuesday Blitz June 20 Early 2023"]
[White "SicilianPanzer"]
[Black "Makhmudov, Shukhrat"]
[BlackFideId "14200775"]
[WhiteElo "2210"]
[BlackElo "2135"]
[Result "1-0"]
[Round "3"]
[TimeControl "180+2"]
[Date "2023.06.20"]
[WhiteClock "0:00:07"]
[BlackClock "0:00:39"]
[Board "211"]

1. e4 {[%clk 0:03:00]}  e5 {[%clk 0:02:59]} 2. Nf3 {[%clk 0:03:00]}  Nc6 {[%clk 0:02:59]} 3. Nc3 {[%clk 0:03:00]}  Nf6 {[%clk 0:02:58]} 4. a3 {[%clk 0:03:00]}  d5 {[%clk 0:02:58]} 5. Bb5 {[%clk 0:02:59]}  d4 {[%clk 0:02:41]} 6. Ne2 {[%clk 0:02:58]}  Bd6 {[%clk 0:02:35]} 7. d3 {[%clk 0:02:54]}  h6 {[%clk 0:02:31]} 8. c3 {[%clk 0:02:50]}  dxc3 {[%clk 0:02:31]} 9. bxc3 {[%clk 0:02:50]}  Bd7 {[%clk 0:02:29]} 10. O-O {[%clk 0:02:39]}  a6 {[%clk 0:02:29]} 11. Bc4 {[%clk 0:02:34]}  O-O {[%clk 0:02:28]} 12. Ng3 {[%clk 0:02:28]}  Qc8 {[%clk 0:02:22]} 13. Nh4 {[%clk 0:02:06]}  Be6 {[%clk 0:02:04]} 14. Nhf5 {[%clk 0:01:59]}  Bxc4 {[%clk 0:01:59]} 15. dxc4 {[%clk 0:01:57]}  Qe6 {[%clk 0:01:58]} 16. Nxg7 {[%clk 0:01:00]}  Kxg7 {[%clk 0:01:52]} 17. Nf5+ {[%clk 0:00:59]}  Kh7 {[%clk 0:01:51]} 18. Bxh6 {[%clk 0:00:58]}  Rg8 {[%clk 0:01:50]} 19. Qf3 {[%clk 0:00:53]}  Ng4 {[%clk 0:01:36]} 20. Bd2 {[%clk 0:00:33]}  Rg6 {[%clk 0:01:30]} 21. h3 {[%clk 0:00:23]}  Nf6 {[%clk 0:01:27]} 22. Be3 {[%clk 0:00:11]}  Ne7 {[%clk 0:01:26]} 23. Nh4 {[%clk 0:00:09]}  Rg7 {[%clk 0:01:20]} 24. c5 {[%clk 0:00:08]}  Rag8 {[%clk 0:01:10]} 25. cxd6 {[%clk 0:00:08]}  cxd6 {[%clk 0:01:10]} 26. Rad1 {[%clk 0:00:07]}  d5 {[%clk 0:01:07]} 27. exd5 {[%clk 0:00:05]}  Qxd5 {[%clk 0:01:08]} 28. Rxd5 {[%clk 0:00:04]}  Nexd5 {[%clk 0:01:07]} 29. Qf5+ {[%clk 0:00:04]}  Kh8 {[%clk 0:01:05]} 30. Qxe5 {[%clk 0:00:04]}  Rh7 {[%clk 0:01:00]} 31. Qd4 {[%clk 0:00:03]}  Rgg7 {[%clk 0:00:57]} 32. c4 {[%clk 0:00:03]}  Nxe3 {[%clk 0:00:55]} 33. fxe3 {[%clk 0:00:02]}  Ng4 {[%clk 0:00:49]} 34. Rxf7 {[%clk 0:00:02]}  Rxh4 {[%clk 0:00:44]} 35. Rxg7 {[%clk 0:00:03]}  Nh6 {[%clk 0:00:42]} 36. Rg6+ {[%clk 0:00:03]}  Rxd4 {[%clk 0:00:41]} 37. exd4 {[%clk 0:00:03]}  Kh7 {[%clk 0:00:42]} 38. Rb6 {[%clk 0:00:01]}  Nf5 {[%clk 0:00:42]} 39. Rxb7+ {[%clk 0:00:02]}  Kg6 {[%clk 0:00:42]} 40. d5 {[%clk 0:00:03]}  Kf6 {[%clk 0:00:42]} 41. Rb6+ {[%clk 0:00:03]}  Kf7 {[%clk 0:00:42]} 42. Rxa6 {[%clk 0:00:04]}  Ne3 {[%clk 0:00:41]} 43. Ra4 {[%clk 0:00:04]}  Nf5 {[%clk 0:00:41]} 44. Rb4 {[%clk 0:00:05]}  Nd6 {[%clk 0:00:41]} 45. g4 {[%clk 0:00:05]}  Ke7 {[%clk 0:00:41]} 46. Kg2 {[%clk 0:00:06]}  Kd7 {[%clk 0:00:42]} 47. Kf3 {[%clk 0:00:07]}  Kc7 {[%clk 0:00:39]} 48. Kf4 {[%clk 0:00:07]} 1-0


[Site "https://www.chess.com"]

[Event "Titled Tuesday Blitz June 20 Early 2023"]
[White "Ramirez Vido, Robert Yorisan"]
[Black "Sanudula, K M Dahamdi"]
[WhiteFideId "3513823"]
[BlackFideId "9932470"]
[WhiteElo "2401"]
[BlackElo "1501"]
[Result "1-0"]
[Round "3"]
[TimeControl "180+2"]
[Date "2023.06.20"]
[WhiteClock "0:02:21"]
[BlackClock "0:02:25"]
[Board "213"]

1. Nf3 {[%clk 0:03:00]}  Nf6 {[%clk 0:02:56]} 2. g3 {[%clk 0:02:59]}  e6 {[%clk 0:02:51]} 3. Bg2 {[%clk 0:03:00]}  d5 {[%clk 0:02:52]} 4. O-O {[%clk 0:03:00]}  Be7 {[%clk 0:02:53]} 5. d3 {[%clk 0:03:00]}  b6 {[%clk 0:02:53]} 6. Nbd2 {[%clk 0:02:59]}  Bb7 {[%clk 0:02:51]} 7. e4 {[%clk 0:03:00]}  dxe4 {[%clk 0:02:50]} 8. dxe4 {[%clk 0:03:00]}  Nxe4 {[%clk 0:02:50]} 9. Ne5 {[%clk 0:02:58]}  Nd6 {[%clk 0:02:45]} 10. Bxb7 {[%clk 0:02:58]}  Nxb7 {[%clk 0:02:44]} 11. Qf3 {[%clk 0:02:58]}  Qc8 {[%clk 0:02:43]} 12. Qxf7+ {[%clk 0:02:55]}  Kd8 {[%clk 0:02:40]} 13. Ne4 {[%clk 0:02:23]}  Nd7 {[%clk 0:02:25]} 14. Nc6# {[%clk 0:02:21]} 1-0


[Site "https://www.chess.com"]

[Event "Titled Tuesday Blitz June 20 Early 2023"]
[White "Zallio, Luciano de Souza"]
[Black "Guzman Moneo, Alberto"]
[WhiteFideId "2109700"]
[BlackFideId "2209616"]
[WhiteElo "2057"]
[BlackElo "2157"]
[Result "0-1"]
[Round "3"]
[TimeControl "180+2"]
[Date "2023.06.20"]
[WhiteClock "0:01:12"]
[BlackClock "0:01:51"]
[Board "216"]

1. e4 {[%clk 0:03:00]}  e6 {[%clk 0:02:55]} 2. d4 {[%clk 0:03:00]}  d5 {[%clk 0:02:55]} 3. e5 {[%clk 0:03:01]}  c5 {[%clk 0:02:55]} 4. c3 {[%clk 0:03:01]}  Nc6 {[%clk 0:02:55]} 5. Nf3 {[%clk 0:03:02]}  Bd7 {[%clk 0:02:55]} 6. Be2 {[%clk 0:02:57]}  Qb6 {[%clk 0:02:51]} 7. dxc5 {[%clk 0:02:54]}  Bxc5 {[%clk 0:02:50]} 8. O-O {[%clk 0:02:54]}  a5 {[%clk 0:02:50]} 9. a4 {[%clk 0:02:53]}  Nge7 {[%clk 0:02:49]} 10. Bd3 {[%clk 0:02:48]}  Ng6 {[%clk 0:02:47]} 11. Qe2 {[%clk 0:02:43]}  O-O {[%clk 0:02:42]} 12. h4 {[%clk 0:02:43]}  f6 {[%clk 0:02:39]} 13. exf6 {[%clk 0:02:32]}  gxf6 {[%clk 0:02:38]} 14. Bh6 {[%clk 0:02:22]}  Rfe8 {[%clk 0:02:32]} 15. Na3 {[%clk 0:02:19]}  e5 {[%clk 0:02:28]} 16. h5 {[%clk 0:02:10]}  Nh8 {[%clk 0:02:22]} 17. Nh4 {[%clk 0:02:00]}  e4 {[%clk 0:02:15]} 18. Bb5 {[%clk 0:02:00]}  Nf7 {[%clk 0:02:12]} 19. Be3 {[%clk 0:01:52]}  Re5 {[%clk 0:02:06]} 20. g4 {[%clk 0:01:35]}  Kh8 {[%clk 0:02:02]} 21. Rad1 {[%clk 0:01:31]}  Rg8 {[%clk 0:02:00]} 22. Kh1 {[%clk 0:01:21]}  Bxg4 {[%clk 0:01:57]} 23. f3 {[%clk 0:01:20]}  exf3 {[%clk 0:01:55]} 24. Bxc5 {[%clk 0:01:20]}  fxe2 {[%clk 0:01:53]} 25. Bxb6 {[%clk 0:01:18]}  exd1=Q {[%clk 0:01:53]} 26. Rxd1 {[%clk 0:01:12]}  Bxd1 {[%clk 0:01:51]} 0-1


[Site "https://www.chess.com"]